fUST/lending_fUST_20240229
["ID","MTS","AMOUNT","RATE_DAILY","PERIOD"]
[315826124,1709196644401,-520.13,0.00019452,2]
[315826126,1709196644410,-506.68,0.00019452,2]
[315826128,1709196644420,-3603.0,0.00019452,2]
[315826130,1709196644429,-500.0,0.00019452,2]
[315826132,1709196644442,-500.0,0.00019452,2]
[315826134,1709196644451,-500.0,0.00019452,2]
[315826136,1709196644461,-500.0,0.00019452,2]
[315826138,1709196644471,-2511.52,0.00019716,3]
[315826140,1709196644480,-1081.51773847,0.00019723,2]
[315826142,1709196644489,-315.456227,0.00019724,2]
[315826144,1709196644498,-500.0,0.00019726,2]
[315826146,1709196644509,-500.0,0.00019726,2]
[315826148,1709196644518,-500.0,0.00019726,2]
[315826150,1709196644528,-500.0,0.00019726,2]
[315826152,1709196644537,-500.0,0.00019726,2]
[315826154,1709196644546,-500.0,0.00019726,2]
[315826156,1709196644556,-500.0,0.00019726,2]
[315826158,1709196644566,-500.0,0.00019726,2]
[315826160,1709196644576,-500.0,0.00019726,2]
[315826162,1709196644586,-500.0,0.00019726,2]
[315826164,1709196644595,-500.0,0.00019726,2]
[315826166,1709196644608,-500.0,0.00019726,2]
[315826167,1709196644618,-500.0,0.00019726,2]
[315826169,1709196644628,-2647.13,0.00019726,2]
[315826171,1709196644638,-500.0,0.00019726,2]
[315826174,1709196644648,-715.44,0.00019726,2]
[315826175,1709196644659,-500.0,0.00019726,2]
[315826178,1709196644670,-500.0,0.00019726,2]
[315826179,1709196644680,-1104.98,0.00019726,2]
[315826181,1709196644690,-500.0,0.00019726,2]
[315826183,1709196644700,-3612.22,0.00019726,2]
[315826186,1709196644714,-500.0,0.00019726,2]
[315826187,1709196644723,-500.0,0.00019726,2]
[315826189,1709196644733,-500.0,0.00019726,2]
[315826191,1709196644742,-1229.52,0.00019726,2]
[315826193,1709196644752,-500.0,0.00019726,2]
[315826195,1709196644761,-500.0,0.00019726,2]
[315826197,1709196644772,-742.06,0.00019726,2]
[315826199,1709196644782,-520.13,0.00019726,2]
[315826201,1709196644791,-506.68,0.00019726,2]
[315826203,1709196644801,-3603.0,0.00019726,2]
[315826205,1709196644811,-562.44,0.00019726,2]
[315826207,1709196644821,-500.0,0.00019726,2]
[315826209,1709196644831,-500.0,0.00019726,2]
[315826211,1709196644840,-184.657561,0.00019739,2]
[315826213,1709196644854,-1505.21454803,0.000199,2]
[315826215,1709196644863,-5002.09866603,0.0001999,3]
[315826217,1709196644874,-718.13624792,0.0002,2]
[315826219,1709196644885,-500.0,0.0002,2]
[315826221,1709196644895,-271.15448004,0.0002,2]
[315826223,1709196644905,-500.0,0.0002,2]
[315826225,1709196644916,-500.0,0.0002,2]
[315826227,1709196644926,-500.0,0.0002,2]
[315826229,1709196644936,-500.0,0.0002,2]
[315826231,1709196644946,-500.0,0.0002,2]
[315826233,1709196644956,-500.0,0.0002,2]
[315826235,1709196644965,-219.35,0.0002,2]
[315826237,1709196644978,-242.41499207,0.0002,2]
[315826239,1709196644988,-500.0,0.0002,2]
[315826241,1709196644998,-515.92,0.0002,2]
[315826243,1709196645007,-500.0,0.0002,2]
[315826245,1709196645017,-2647.13,0.0002,2]
[315826247,1709196645027,-500.0,0.0002,2]
[315826249,1709196645037,-715.44,0.0002,2]
[315826251,1709196645045,-500.0,0.0002,2]
[315826252,1709196645055,-500.0,0.0002,2]
[315826254,1709196645065,-1104.98,0.0002,2]
[315826255,1709196645074,-500.0,0.0002,2]
[315826257,1709196645084,-3612.22,0.0002,2]
[315826259,1709196645094,-500.0,0.0002,2]
[315826261,1709196645106,-629.79,0.0002,2]
[315826263,1709196645117,-500.0,0.0002,2]
[315826265,1709196645127,-1229.52,0.0002,2]
[315826267,1709196645137,-500.0,0.0002,2]
[315826269,1709196645146,-392.73,0.0002,2]
[315826271,1709196645155,-742.06,0.0002,2]
[315826273,1709196645165,-520.13,0.0002,2]
[315826274,1709196645174,-506.68,0.0002,2]
[315826276,1709196645184,-3603.0,0.0002,2]
[315826278,1709196645197,-500.0,0.0002,2]
[315826280,1709196645207,-260.73,0.0002,2]
[315826282,1709196645217,-155.0,0.0002,2]
[315826284,1709196645227,-155.0,0.00020113,2]
[315826286,1709196645237,-238.50130044,0.00020114,2]
[315826288,1709196645246,-315.456227,0.00020116,2]
[315826290,1709196645256,-150.98490151,0.00020152,7]
[315826292,1709196645269,-7368.55717622,0.0002019,3]
[315826294,1709196645279,-5000.0,0.0002019,5]
[315826296,1709196645288,-5000.0,0.0002019,5]
[315826298,1709196645298,-397.82010255,0.0002019,3]
[315826300,1709196645307,-538.32913868,0.0002019,3]
[315826302,1709196645316,-12972.51402617,0.0002019,3]
[315826304,1709196645325,-28256.35877637,0.0002019,3]
[315826306,1709196645334,-154.0332292,0.00020247,2]
[315826308,1709196645344,-150.365,0.00020253,2]
[315826310,1709196645355,-500.0,0.00020273,2]
[315826312,1709196645364,-500.0,0.00020273,2]
[315826314,1709196645373,-500.0,0.00020273,2]
[315826316,1709196645382,-500.0,0.00020273,2]
[315826318,1709196645392,-500.0,0.00020273,2]
[315826320,1709196645401,-500.0,0.00020273,2]
[315826322,1709196645410,-172.36,0.00020273,2]
[315826324,1709196645419,-500.0,0.00020273,2]
[315826326,1709196645428,-500.0,0.00020273,2]
[315826328,1709196645437,-2647.13,0.00020273,2]
[315826329,1709196645446,-500.0,0.00020273,2]
[315826331,1709196645455,-715.44,0.00020273,2]
[315826333,1709196645465,-500.0,0.00020273,2]
[315826335,1709196645475,-1104.98,0.00020273,2]
[315826337,1709196645484,-500.0,0.00020273,2]
[315826339,1709196645493,-3612.22,0.00020273,2]
[315826341,1709196645502,-500.0,0.00020273,2]
[315826343,1709196645512,-500.0,0.00020273,2]
[315826345,1709196645521,-1229.52,0.00020273,2]
[315826347,1709196645531,-500.0,0.00020273,2]
[315826349,1709196645541,-742.06,0.00020273,2]
[315826351,1709196645550,-520.13,0.00020273,2]
[315826353,1709196645559,-506.68,0.00020273,2]
[315826355,1709196645569,-3603.0,0.00020273,2]
[315826357,1709196645578,-500.0,0.00020273,2]
[315826359,1709196645587,-704.78533658,0.00020299,3]
[315826361,1709196645599,-318.3037627,0.00020299,3]
[315826363,1709196645608,-184.657561,0.000203,2]
[315826365,1709196645618,-942.92604088,0.0002032,2]
[315826367,1709196645627,-315.456227,0.00020508,2]
[315826381,1709196645718,-219.71,0.00020547,2]
[315826384,1709196645741,-500.0,0.00020547,2]
[315826386,1709196645751,-220.89,0.00020547,2]
[315826388,1709196645760,-500.0,0.00020547,2]
[315826389,1709196645769,-500.0,0.00020547,2]
[315826391,1709196645778,-500.0,0.00020547,2]
[315826394,1709196645788,-500.0,0.00020547,2]
[315826397,1709196645797,-500.0,0.00020547,2]
[315826400,1709196645807,-2647.13,0.00020547,2]
[315826403,1709196645817,-500.0,0.00020547,2]
[315826406,1709196645826,-715.44,0.00020547,2]
[315826409,1709196645835,-500.0,0.00020547,2]
[315826412,1709196645844,-1104.98,0.00020547,2]
[315826415,1709196645857,-500.0,0.00020547,2]
[315826420,1709196645867,-3612.22,0.00020547,2]
[315826425,1709196645876,-500.0,0.00020547,2]
[315826427,1709196645888,-500.0,0.00020547,2]
[315826430,1709196645898,-1229.52,0.00020547,2]
[315826435,1709196645908,-500.0,0.00020547,2]
[315826439,1709196645917,-742.06,0.00020547,2]
[315826442,1709196645927,-520.13,0.00020547,2]
[315826446,1709196645936,-506.68,0.00020547,2]
[315826449,1709196645945,-3603.0,0.00020547,2]
[315826452,1709196645955,-500.0,0.00020547,2]
[315826456,1709196645964,-150.98490151,0.00020563,4]
[315826460,1709196645973,-500.0,0.00020821,2]
[315826464,1709196645983,-500.0,0.00020821,2]
[315826468,1709196645992,-500.0,0.00020821,2]
[315826470,1709196646002,-500.0,0.00020821,2]
[315826473,1709196646011,-500.0,0.00020821,2]
[315826475,1709196646020,-500.0,0.00020821,2]
[315826477,1709196646029,-2647.13,0.00020821,2]
[315826479,1709196646038,-500.0,0.00020821,2]
[315826481,1709196646047,-715.44,0.00020821,2]
[315826483,1709196646056,-500.0,0.00020821,2]
[315826484,1709196646066,-1104.98,0.00020821,2]
[315826486,1709196646075,-500.0,0.00020821,2]
[315826488,1709196646084,-3612.22,0.00020821,2]
[315826490,1709196646093,-500.0,0.00020821,2]
[315826491,1709196646105,-500.0,0.00020821,2]
[315826493,1709196646114,-1229.52,0.00020821,2]
[315826495,1709196646123,-500.0,0.00020821,2]
[315826497,1709196646134,-742.06,0.00020821,2]
[315826499,1709196646144,-520.13,0.00020821,2]
[315826501,1709196646152,-506.68,0.00020821,2]
[315826503,1709196646162,-3603.0,0.00020821,2]
[315826504,1709196646172,-500.0,0.00020821,2]
[315826506,1709196646181,-153.6964091,0.00020849,2]
[315826508,1709196646190,-153.0,0.00020849,2]
[315826510,1709196646200,-184.657561,0.00020861,2]
[315826512,1709196646210,-1129.25922514,0.00020895,30]
[315826513,1709196646221,-736.84344749,0.00020895,30]
[315826515,1709196646231,-3137.32504894,0.00020895,30]
[315826517,1709196646241,-300.0,0.000209,9]
[315826519,1709196646250,-189.71611,0.000209,30]
[315826521,1709196646261,-315.456227,0.000209,2]
[315826523,1709196646270,-150.98490151,0.00020983,2]
[315826525,1709196646279,-155.15360207,0.00020998,2]
[315826526,1709196646289,-421.89673095,0.00020998,2]
[315826528,1709196646298,-4103.59302504,0.00020998,2]
[315826530,1709196646307,-1591.62159516,0.00020998,2]
[315826532,1709196646316,-155.18156243,0.00020998,2]
[315826533,1709196646326,-1634.53366324,0.00020998,2]
[315826535,1709196646336,-743.63032414,0.00020999,2]
[315826537,1709196646346,-1413972.82755193,0.00021,2]
[315826539,1709196646362,-1214.88420049,0.00021,2]
[315827037,1709196651949,1000.0,0.00025,120]
[315827585,1709197832976,-155.0,0.00017998,2]
[315827587,1709197832986,-155.0,0.00017999,2]
[315827589,1709197832996,-428.53017255,0.00018,2]
[315827591,1709197833005,-4584.2088566,0.00018015,2]
[315827594,1709197833016,-5253.30965585,0.00018015,2]
[315827597,1709197833040,-15062.48148755,0.00018015,2]
[315827599,1709197833049,-1911.34659447,0.000189,2]
[315827601,1709197833059,-1081.51773847,0.00018997,2]
[315827603,1709197833068,-1395.04475953,0.00018998,2]
[315827604,1709197833076,-22492.03487338,0.00019,2]
[315827606,1709197833085,-500.0,0.00019178,2]
[315827608,1709197833094,-500.0,0.00019178,2]
[315827609,1709197833104,-500.0,0.00019178,2]
[315827610,1709197833115,-500.0,0.00019178,2]
[315827613,1709197833124,-500.0,0.00019178,2]
[315827614,1709197833133,-500.0,0.00019178,2]
[315827617,1709197833143,-3463.83,0.00019178,2]
[315827618,1709197833152,-500.0,0.00019178,2]
[315827620,1709197833161,-576.37,0.00019178,2]
[315827622,1709197833171,-500.0,0.00019178,2]
[315827623,1709197833180,-500.0,0.00019178,2]
[315827624,1709197833189,-500.0,0.00019178,2]
[315827625,1709197833199,-3572.41,0.00019178,2]
[315827626,1709197833209,-500.0,0.00019178,2]
[315827627,1709197833218,-224.4656072,0.00019178,2]
[315827628,1709197833228,-500.0,0.00019178,2]
[315827629,1709197833237,-535.1,0.00019178,2]
[315827631,1709197833247,-500.0,0.00019178,2]
[315827633,1709197833255,-1228.21,0.00019178,2]
[315827635,1709197833265,-500.0,0.00019178,2]
[315827637,1709197833274,-500.0,0.00019178,2]
[315827638,1709197833283,-194.840162,0.00019178,2]
[315827639,1709197833294,-170.88327206,0.0001935,2]
[315827641,1709197833303,-5408.45,0.00019431,3]
[315827643,1709197833312,-855.74,0.00019441,3]
[315827645,1709197833322,-632.64477132,0.0001945,2]
[315827646,1709197833331,-500.0,0.0001945,2]
[315827647,1709197833341,-435.3883197,0.0001945,2]
[315827648,1709197833350,-500.0,0.0001945,2]
[315827649,1709197833361,-500.0,0.0001945,2]
[315827650,1709197833370,-500.0,0.0001945,2]
[315827651,1709197833379,-506.12483989,0.0001945,2]
[315827652,1709197833388,-500.0,0.0001945,2]
[315827653,1709197833398,-500.0,0.0001945,2]
[315827654,1709197833407,-500.0,0.0001945,2]
[315827655,1709197833416,-500.0,0.0001945,2]
[315827656,1709197833425,-500.0,0.0001945,2]
[315827657,1709197833435,-500.0,0.0001945,2]
[315827658,1709197833445,-500.0,0.0001945,2]
[315827659,1709197833454,-506.36575797,0.0001945,2]
[315827660,1709197833463,-381.55695616,0.0001945,2]
[315827661,1709197833472,-500.0,0.0001945,2]
[315827662,1709197833482,-502.22189341,0.0001945,2]
[315827663,1709197833491,-499.48,0.0001945,2]
[315827664,1709197833501,-500.0,0.0001945,2]
[315827665,1709197833511,-180.00516002,0.0001945,2]
[315827666,1709197833521,-500.0,0.0001945,2]
[315827667,1709197833531,-500.0,0.0001945,2]
[315827668,1709197833540,-504.73,0.0001945,2]
[315827669,1709197833552,-587.73696363,0.0001945,2]
[315827670,1709197833561,-500.0,0.0001945,2]
[315827671,1709197833571,-696.23,0.0001945,2]
[315827672,1709197833580,-265.6367943,0.0001945,2]
[315827673,1709197833590,-500.0,0.0001945,2]
[315827674,1709197833599,-2351.44,0.0001945,2]
[315827675,1709197833610,-521.95509514,0.0001945,2]
[315827676,1709197833619,-500.0,0.0001945,2]
[315827677,1709197833631,-515.18,0.0001945,2]
[315827678,1709197833643,-673.91,0.0001945,2]
[315827679,1709197833652,-333.745545,0.0001945,2]
[315827680,1709197833662,-269.46187283,0.0001945,2]
[315827681,1709197833671,-500.0,0.0001945,2]
[315827682,1709197833679,-500.0,0.0001945,2]
[315827683,1709197833689,-500.0,0.0001945,2]
[315827684,1709197833699,-928.53,0.0001945,2]
[315827685,1709197833708,-500.0,0.00019452,2]
[315827686,1709197833718,-532.13012448,0.00019452,2]
[315827687,1709197833727,-500.0,0.00019452,2]
[315827688,1709197833736,-3463.83,0.00019452,2]
[315827689,1709197833745,-242.60303199,0.00019452,2]
[315827690,1709197833754,-500.0,0.00019452,2]
[315827691,1709197833763,-500.0,0.00019452,2]
[315827692,1709197833773,-500.0,0.00019452,2]
[315827693,1709197833784,-3572.41,0.00019452,2]
[315827694,1709197833793,-500.0,0.00019452,2]
[315827695,1709197833802,-535.1,0.00019452,2]
[315827696,1709197833811,-1228.21,0.00019452,2]
[315827697,1709197833821,-500.0,0.00019452,2]
[315827698,1709197833830,-250.01023506,0.00019452,2]
[315827699,1709197833840,-500.0,0.00019724,2]
[315827700,1709197833849,-500.0,0.00019724,2]
[315827701,1709197833860,-500.0,0.00019724,2]
[315827702,1709197833870,-500.0,0.00019724,2]
[315827703,1709197833879,-566.86571756,0.00019724,2]
[315827704,1709197833888,-504.73,0.00019724,2]
[315827705,1709197833898,-696.23,0.00019724,2]
[315827706,1709197833907,-2351.44,0.00019724,2]
[315827707,1709197833917,-515.18,0.00019724,2]
[315827708,1709197833926,-673.91,0.00019724,2]
[315827709,1709197833937,-500.0,0.00019724,2]
[315827710,1709197833946,-928.53,0.00019724,2]
[315827711,1709197833954,-280.52,0.00019726,2]
[315827712,1709197833964,-500.0,0.00019726,2]
[315827713,1709197833973,-3463.83,0.00019726,2]
[315827714,1709197833982,-500.0,0.00019726,2]
[315827715,1709197833991,-500.0,0.00019726,2]
[315827716,1709197834002,-500.0,0.00019726,2]
[315827717,1709197834011,-3572.41,0.00019726,2]
[315827718,1709197834020,-500.0,0.00019726,2]
[315827719,1709197834029,-535.1,0.00019726,2]
[315827720,1709197834038,-1228.21,0.00019726,2]
[315827721,1709197834048,-500.0,0.00019726,2]
[315827722,1709197834057,-219.0300432,0.00019998,2]
[315827723,1709197834067,-500.0,0.00019998,2]
[315827724,1709197834076,-588.54104042,0.00019998,2]
[315827725,1709197834086,-500.0,0.00019998,2]
[315827726,1709197834095,-504.73,0.00019998,2]
[315827727,1709197834106,-696.23,0.00019998,2]
[315827728,1709197834115,-2351.44,0.00019998,2]
[315827729,1709197834125,-515.18,0.00019998,2]
[315827730,1709197834134,-673.91,0.00019998,2]
[315827731,1709197834144,-643.15901265,0.00019998,2]
[315827732,1709197834155,-928.53,0.00019998,2]
[315827733,1709197834164,-5520.31508126,0.0002,2]
[315827734,1709197834174,-500.0,0.0002,2]
[315827735,1709197834183,-3463.83,0.0002,2]
[315827736,1709197834192,-500.0,0.0002,2]
[315827737,1709197834202,-500.0,0.0002,2]
[315827738,1709197834211,-500.0,0.0002,2]
[315827739,1709197834221,-3572.41,0.0002,2]
[315827740,1709197834230,-500.0,0.0002,2]
[315827741,1709197834239,-535.1,0.0002,2]
[315827742,1709197834248,-1228.21,0.0002,2]
[315827743,1709197834258,-155.0,0.0002,2]
[315827744,1709197834268,-500.0,0.0002,2]
[315827745,1709197834278,-238.50130044,0.00020177,2]
[315827746,1709197834287,-155.0,0.00020178,2]
[315827747,1709197834296,-1133.15865405,0.0002019,3]
[315827748,1709197834305,-12075.82415687,0.0002019,5]
[315827749,1709197834315,-500.0,0.00020272,2]
[315827750,1709197834324,-500.0,0.00020272,2]
[315827751,1709197834334,-504.73,0.00020272,2]
[315827752,1709197834344,-696.23,0.00020272,2]
[315827753,1709197834353,-2351.44,0.00020272,2]
[315827754,1709197834365,-515.18,0.00020272,2]
[315827755,1709197834376,-673.91,0.00020272,2]
[315827756,1709197834386,-928.53,0.00020272,2]
[315827757,1709197834395,-500.0,0.00020273,2]
[315827758,1709197834404,-3463.83,0.00020273,2]
[315827759,1709197834414,-500.0,0.00020273,2]
[315827760,1709197834424,-500.0,0.00020273,2]
[315827761,1709197834433,-500.0,0.00020273,2]
[315827762,1709197834442,-3572.41,0.00020273,2]
[315827763,1709197834451,-500.0,0.00020273,2]
[315827764,1709197834461,-535.1,0.00020273,2]
[315827765,1709197834471,-1228.21,0.00020273,2]
[315827766,1709197834480,-500.0,0.00020273,2]
[315827767,1709197834489,-490.0,0.00020299,3]
[315827768,1709197834499,-285.42704289,0.00020299,2]
[315827769,1709197834510,-500.0,0.00020546,2]
[315827770,1709197834519,-500.0,0.00020546,2]
[315827771,1709197834529,-504.73,0.00020546,2]
[315827772,1709197834539,-696.23,0.00020546,2]
[315827773,1709197834550,-2351.44,0.00020546,2]
[315827774,1709197834559,-515.18,0.00020546,2]
[315827775,1709197834570,-673.91,0.00020546,2]
[315827776,1709197834579,-928.53,0.00020546,2]
[315827777,1709197834588,-500.0,0.00020547,2]
[315827778,1709197834597,-3463.83,0.00020547,2]
[315827779,1709197834609,-500.0,0.00020547,2]
[315827780,1709197834619,-500.0,0.00020547,2]
[315827781,1709197834628,-500.0,0.00020547,2]
[315827782,1709197834638,-3572.41,0.00020547,2]
[315827783,1709197834647,-206.45,0.00020547,2]
[315827784,1709197834656,-535.1,0.00020547,2]
[315827785,1709197834665,-1228.21,0.00020547,2]
[315827786,1709197834675,-500.0,0.00020547,2]
[315827787,1709197834684,-500.0,0.0002082,2]
[315827788,1709197834694,-500.0,0.0002082,2]
[315827789,1709197834703,-504.73,0.0002082,2]
[315827790,1709197834713,-696.23,0.0002082,2]
[315827791,1709197834726,-2351.44,0.0002082,2]
[315827792,1709197834735,-515.18,0.0002082,2]
[315827793,1709197834744,-673.91,0.0002082,2]
[315827794,1709197834754,-928.53,0.0002082,2]
[315827795,1709197834763,-500.0,0.00020821,2]
[315827796,1709197834772,-3463.83,0.00020821,2]
[315827797,1709197834782,-500.0,0.00020821,2]
[315827798,1709197834885,-500.0,0.00020821,2]
[315827799,1709197834895,-253.28,0.00020821,2]
[315827800,1709197834905,-3572.41,0.00020821,2]
[315827801,1709197834915,-535.1,0.00020821,2]
[315827802,1709197834923,-1228.21,0.00020821,2]
[315827803,1709197834932,-500.0,0.00020821,2]
[315827804,1709197834941,-1000.0,0.00020822,2]
[315827805,1709197834950,-300.05151244,0.00020839,2]
[315827806,1709197834959,-493.069484,0.000209,9]
[315827807,1709197834968,-170.88327205,0.000209,2]
[315827808,1709197834977,-3142.89742226,0.000209,2]
[315827809,1709197834986,-469.24726258,0.00020983,2]
[315827810,1709197834996,-181.56744705,0.00020997,2]
[315827811,1709197835004,-211.21626356,0.00020998,2]
[315827812,1709197835015,-1301.77597715,0.00020998,2]
[315827813,1709197835025,-155.22420492,0.00020998,2]
[315827814,1709197835035,-173.47534946,0.00020998,2]
[315827815,1709197835045,-161.78096799,0.00020998,2]
[315827816,1709197835055,-155.2196205,0.00020998,2]
[315827817,1709197835065,-441.36557175,0.00020998,2]
[315827818,1709197835075,-375.1586733,0.00020998,2]
[315827819,1709197835084,-199.70945448,0.00020998,2]
[315827820,1709197835094,-224.49784991,0.00020998,2]
[315827821,1709197835103,-519.91132688,0.00020998,3]
[315827822,1709197835116,-155.21311975,0.00020998,2]
[315827823,1709197835125,-176.37430786,0.00020998,2]
[315827824,1709197835135,-250.56589806,0.00020998,2]
[315827825,1709197835145,-248.7607311,0.00020998,2]
[315827826,1709197835156,-155.25921865,0.00020998,2]
[315827827,1709197835167,-1687.29005377,0.00020998,2]
[315827828,1709197835177,-271.40672521,0.00020998,2]
[315827829,1709197835187,-202.38878052,0.00020998,2]
[315827830,1709197835198,-260.46445878,0.00020998,2]
[315827831,1709197835208,-233.84611186,0.00020998,2]
[315827832,1709197835219,-155.20176229,0.00020998,2]
[315827833,1709197835229,-210.14679074,0.00020998,2]
[315827834,1709197835239,-10096.60746286,0.00020998,2]
[315827835,1709197835249,-300.82990921,0.00020998,2]
[315827836,1709197835259,-209.76351458,0.00020998,2]
[315827837,1709197835268,-1591.37724344,0.00020998,2]
[315827838,1709197835278,-1992.97014433,0.00020998,2]
[315827839,1709197835287,-412.22549861,0.00020998,2]
[315827840,1709197835296,-160.99658706,0.00020998,2]
[315827841,1709197835305,-500.0,0.00020998,2]
[315827842,1709197835315,-500.0,0.00020998,2]
[315827843,1709197835324,-500.0,0.00020998,2]
[315827844,1709197835334,-210.73119602,0.00020998,2]
[315827845,1709197835343,-500.0,0.00020998,2]
[315827846,1709197835353,-152.35999661,0.00020998,2]
[315827847,1709197835365,-479.29860371,0.00020998,2]
[315827848,1709197835374,-277.08971064,0.00020998,2]
[315827849,1709197835384,-500.0,0.00020998,2]
[315827850,1709197835393,-500.0,0.00020998,2]
[315827851,1709197835403,-500.0,0.00020998,2]
[315827852,1709197835412,-500.0,0.00020998,2]
[315827853,1709197835422,-500.0,0.00020998,2]
[315827854,1709197835431,-500.0,0.00020998,2]
[315827855,1709197835440,-154.42304177,0.00020998,2]
[315827856,1709197835450,-500.0,0.00020998,2]
[315827857,1709197835459,-500.0,0.00020998,2]
[315827858,1709197835468,-500.0,0.00020998,2]
[315827859,1709197835478,-500.0,0.00020998,2]
[315827860,1709197835488,-500.0,0.00020998,2]
[315827861,1709197835497,-500.0,0.00020998,2]
[315827862,1709197835506,-500.0,0.00020998,2]
[315827863,1709197835516,-500.0,0.00020998,2]
[315827864,1709197835526,-650.0,0.00020998,2]
[315827865,1709197835535,-500.0,0.00020998,2]
[315827866,1709197835544,-155.08219356,0.00020999,2]
[315827867,1709197835557,-719992.04371162,0.00020999,30]
[315827868,1709197835567,-56513.30985689,0.00021,2]
[315827869,1709197835637,-623.38533298,0.00017997,2]
[315827870,1709197835647,-1732.02927825,0.00021,2]
[315827917,1709197840312,-1634.53366324,0.00017999,2]
[315827920,1709197840322,-2453.54,0.00019178,2]
[315827922,1709197840332,-2453.54,0.00019452,2]
[315827923,1709197840341,-2453.54,0.00019726,2]
[315827926,1709197840354,-3393.61,0.0001999,3]
[315827928,1709197840368,-2453.54,0.0002,2]
[315827930,1709197840379,-2453.54,0.00020273,2]
[315827932,1709197840390,-2453.54,0.00020547,2]
[315827934,1709197840401,-2453.54,0.00020821,2]
[315827936,1709197840413,-500.0,0.00020997,2]
[315827938,1709197840423,-500.0,0.00020997,2]
[315827940,1709197840433,-500.0,0.00020997,2]
[315827942,1709197840443,-500.0,0.00020997,2]
[315827944,1709197840454,-500.0,0.00020997,2]
[315827947,1709197840466,-500.0,0.00020997,2]
[315827949,1709197840477,-287.49569674,0.00020997,2]
[315827951,1709197840487,-48922.30855764,0.00021,2]
[315827953,1709197840501,-6288.49864222,0.00021,2]
[315827956,1709197840515,-9421.8056164,0.00021,2]
[315827958,1709197840528,-2937.2358161,0.00021,2]
[315828259,1709197843554,-194.840162,0.00019178,2]
[315828261,1709197843565,-11306.93882906,0.00021,2]
[315828592,1709197846616,-191.96515579,0.00020299,2]
[315828594,1709197846631,-2828.01,0.0002099,3]
[315828596,1709197846642,-428.53017255,0.00020999,2]
[315828598,1709197846655,-106410.89553166,0.00021,2]
[315830559,1709198205039,-623.38533298,0.00018697,2]
[315830560,1709198205062,-428.53017255,0.00018698,2]
[315830561,1709198205088,-1767.7569662,0.00018699,2]
[315830562,1709198205111,-1634.53366324,0.00018893,2]
[315830563,1709198205135,-1538.08388989,0.000189,2]
[315830564,1709198205158,-1212.00001212,0.00019177,2]
[315830565,1709198205181,-224.0217405,0.00019178,2]
[315830566,1709198205206,-500.0,0.00019178,2]
[315830567,1709198205229,-696.39,0.00019178,2]
[315830568,1709198205254,-869.98,0.00019178,2]
[315830569,1709198205277,-500.0,0.00019178,2]
[315830570,1709198205301,-500.0,0.00019178,2]
[315830571,1709198205325,-1737.93,0.00019178,2]
[315830572,1709198205349,-500.0,0.00019178,2]
[315830573,1709198205373,-543.01,0.00019178,2]
[315830574,1709198205399,-500.0,0.00019178,2]
[315830575,1709198205424,-500.0,0.00019178,2]
[315830576,1709198205448,-1815.81,0.00019178,2]
[315830577,1709198205471,-500.0,0.00019178,2]
[315830578,1709198205494,-505.43,0.00019178,2]
[315830579,1709198205516,-174.198813,0.00019189,2]